[Event "Early-Titled-Tuesday-Blitz-May-07-2024"]
[Site "Chess.com"]
[Date "2024.05.07"]
[Round "8"]
[White "AsaHoffmann"]
[Black "HeroWilczek"]
[Result "0-1"]
[WhiteElo "2408"]
[BlackElo "2572"]
[TimeControl "180+1"]
[EndTime "9:35:37 PDT"]
[Termination "HeroWilczek won on time"]

1. d4 {[%clk 0:02:58.9]} 1... d5 {[%clk 0:02:59.3]} 2. Bg5 {[%clk 0:02:53.3]}
2... h6 {[%clk 0:02:54.2]} 3. Bh4 {[%clk 0:02:52.9]} 3... g5 {[%clk 0:02:53.5]}
4. Bg3 {[%clk 0:02:53]} 4... Bg7 {[%clk 0:02:54.2]} 5. e3 {[%clk 0:02:53.1]}
5... Nd7 {[%clk 0:02:49.6]} 6. Bd3 {[%clk 0:02:50.6]} 6... Nf8 {[%clk 0:02:46]}
7. Nd2 {[%clk 0:02:48.3]} 7... Ng6 {[%clk 0:02:46.3]} 8. Ngf3 {[%clk 0:02:44.5]}
8... Nf6 {[%clk 0:02:39]} 9. c3 {[%clk 0:02:43.5]} 9... O-O {[%clk 0:02:35.6]}
10. e4 {[%clk 0:02:38.5]} 10... dxe4 {[%clk 0:02:34.5]} 11. Nxe4 {[%clk
0:02:38.3]} 11... Nxe4 {[%clk 0:02:34.3]} 12. Bxe4 {[%clk 0:02:38.3]} 12... f5
{[%clk 0:02:24.2]} 13. Bc2 {[%clk 0:02:29.7]} 13... Qe8 {[%clk 0:02:20.3]} 14.
h3 {[%clk 0:02:24.5]} 14... e5 {[%clk 0:02:06.4]} 15. dxe5 {[%clk 0:02:19.4]}
15... Bxe5 {[%clk 0:01:56.4]} 16. Bxe5 {[%clk 0:02:10.4]} 16... Nxe5 {[%clk
0:01:55.9]} 17. O-O {[%clk 0:02:10.1]} 17... Nxf3+ {[%clk 0:01:45.9]} 18. Qxf3
{[%clk 0:02:09.3]} 18... Qc6 {[%clk 0:01:46.4]} 19. Qxc6 {[%clk 0:02:05.6]}
19... bxc6 {[%clk 0:01:47.3]} 20. Rfe1 {[%clk 0:02:04.6]} 20... Kf7 {[%clk
0:01:35.6]} 21. Rad1 {[%clk 0:02:01.1]} 21... Be6 {[%clk 0:01:32.9]} 22. Bb3
{[%clk 0:01:57.9]} 22... Bxb3 {[%clk 0:01:30.8]} 23. axb3 {[%clk 0:01:57.5]}
23... Rfd8 {[%clk 0:01:25.3]} 24. b4 {[%clk 0:01:56.6]} 24... Rxd1 {[%clk
0:01:13.4]} 25. Rxd1 {[%clk 0:01:56.2]} 25... Ke6 {[%clk 0:01:14]} 26. Ra1
{[%clk 0:01:54.3]} 26... Kd5 {[%clk 0:01:11.8]} 27. Kf1 {[%clk 0:01:54]} 27...
Kc4 {[%clk 0:01:09.2]} 28. Ke2 {[%clk 0:01:50.6]} 28... Kb3 {[%clk 0:01:07.8]}
29. Ra6 {[%clk 0:01:42.6]} 29... Kxb2 {[%clk 0:01:02.6]} 30. Rxc6 {[%clk
0:01:42]} 30... Re8+ {[%clk 0:01:03]} 31. Kf3 {[%clk 0:01:36.1]} 31... Re7
{[%clk 0:01:00.2]} 32. c4 {[%clk 0:01:35.8]} 32... Kb3 {[%clk 0:00:54]} 33. b5
{[%clk 0:01:33.6]} 33... Kb4 {[%clk 0:00:53.9]} 34. g3 {[%clk 0:01:13.6]} 34...
h5 {[%clk 0:00:50.5]} 35. h4 {[%clk 0:01:10.5]} 35... g4+ {[%clk 0:00:34.8]} 36.
Kf4 {[%clk 0:01:09.8]} 36... Re4+ {[%clk 0:00:34.8]} 37. Kxf5 {[%clk 0:01:09.8]}
37... Rxc4 {[%clk 0:00:35.7]} 38. Ra6 {[%clk 0:00:56]} 38... Rc5+ {[%clk
0:00:28.5]} 39. Kg6 {[%clk 0:00:54.3]} 39... Kxb5 {[%clk 0:00:27.9]} 40. Rxa7
{[%clk 0:00:54]} 40... Kb6 {[%clk 0:00:27.4]} 41. Ra2 {[%clk 0:00:40.2]} 41...
Rd5 {[%clk 0:00:25.6]} 42. Kf6 {[%clk 0:00:36.3]} 42... c5 {[%clk 0:00:23.4]}
43. Ke6 {[%clk 0:00:34.4]} 43... Rd3 {[%clk 0:00:23.1]} 44. Kf5 {[%clk
0:00:21.3]} 44... c4 {[%clk 0:00:18]} 45. Kg5 {[%clk 0:00:15.9]} 45... Rd5+
{[%clk 0:00:17.6]} 46. Kf4 {[%clk 0:00:14.1]} 46... Kb5 {[%clk 0:00:17.6]} 47.
Ke4 {[%clk 0:00:12.2]} 47... Rd8 {[%clk 0:00:13.1]} 48. Ra7 {[%clk 0:00:10.2]}
48... c3 {[%clk 0:00:11.2]} 49. Rc7 {[%clk 0:00:09.5]} 49... Kb4 {[%clk
0:00:11.4]} 50. Kf4 {[%clk 0:00:09.2]} 50... Kb3 {[%clk 0:00:09.2]} 51. f3
{[%clk 0:00:09.1]} 51... gxf3 {[%clk 0:00:08.3]} 52. Kxf3 {[%clk 0:00:09.1]}
52... c2 {[%clk 0:00:08.4]} 53. g4 {[%clk 0:00:09]} 53... hxg4+ {[%clk
0:00:04.6]} 54. Kxg4 {[%clk 0:00:08.9]} 54... Rd4+ {[%clk 0:00:05.3]} 55. Kg5
{[%clk 0:00:08.2]} 55... Rc4 {[%clk 0:00:06.2]} 56. Rb7+ {[%clk 0:00:07.7]}
56... Kc3 {[%clk 0:00:06.7]} 57. Rf7 {[%clk 0:00:03.3]} 57... c1=Q+ {[%clk
0:00:06.9]} 58. Kg6 {[%clk 0:00:03.3]} 58... Rg4+ {[%clk 0:00:06.5]} 59. Kh5
{[%clk 0:00:02.7]} 59... Rf4 {[%clk 0:00:05.5]} 60. Rxf4 {[%clk 0:00:00.7]}
60... Qxf4 {[%clk 0:00:05.1]} 61. Kg6 {[%clk 0:00:00.4]} 61... Qxh4 {[%clk
0:00:05.9]} 0-1

[Event "Early-Titled-Tuesday-Blitz-May-07-2024"]
[Site "Chess.com"]
[Date "2024.05.07"]
[Round "8"]
[White "LileKoridze"]
[Black "biveklama"]
[Result "0-1"]
[WhiteElo "2383"]
[BlackElo "2537"]
[TimeControl "180+1"]
[EndTime "9:35:38 PDT"]
[Termination "biveklama won by resignation"]

1. d4 {[%clk 0:03:00.9]} 1... d5 {[%clk 0:02:59.4]} 2. c4 {[%clk 0:03:00.8]}
2... c6 {[%clk 0:02:59.7]} 3. Nf3 {[%clk 0:03:00.7]} 3... Nf6 {[%clk 0:03:00.2]}
4. e3 {[%clk 0:03:01]} 4... Bg4 {[%clk 0:02:59.6]} 5. Be2 {[%clk 0:02:59.6]}
5... e6 {[%clk 0:02:58.8]} 6. Nbd2 {[%clk 0:02:56]} 6... Nbd7 {[%clk 0:02:58.7]}
7. O-O {[%clk 0:02:56.2]} 7... Bd6 {[%clk 0:02:51.3]} 8. h3 {[%clk 0:02:54.6]}
8... Bh5 {[%clk 0:02:49.4]} 9. Bd3 {[%clk 0:02:49.4]} 9... e5 {[%clk 0:02:34.5]}
10. cxd5 {[%clk 0:02:40.4]} 10... Nxd5 {[%clk 0:02:27.1]} 11. Nc4 {[%clk
0:02:36.3]} 11... Bc7 {[%clk 0:02:08.7]} 12. dxe5 {[%clk 0:02:08.2]} 12... Bxf3
{[%clk 0:01:50.4]} 13. Qxf3 {[%clk 0:02:07.4]} 13... Nxe5 {[%clk 0:01:50.3]} 14.
Nxe5 {[%clk 0:02:07.2]} 14... Bxe5 {[%clk 0:01:51.2]} 15. Bc4 {[%clk 0:01:41.1]}
15... Nf6 {[%clk 0:01:36.9]} 16. Rd1 {[%clk 0:01:22.1]} 16... Qe7 {[%clk
0:01:37]} 17. e4 {[%clk 0:01:14]} 17... O-O {[%clk 0:01:36.3]} 18. Rb1 {[%clk
0:01:06.9]} 18... Rfd8 {[%clk 0:01:18]} 19. Bg5 {[%clk 0:00:52.7]} 19... h6
{[%clk 0:01:14.9]} 20. Bxf6 {[%clk 0:00:52]} 20... Bxf6 {[%clk 0:01:15.4]} 21.
b3 {[%clk 0:00:47.7]} 21... Bd4 {[%clk 0:01:12.8]} 22. Rd2 {[%clk 0:00:42.5]}
22... Rd6 {[%clk 0:01:10.5]} 23. Rbd1 {[%clk 0:00:42.4]} 23... Rad8 {[%clk
0:01:11]} 24. Kh1 {[%clk 0:00:41.4]} 24... b5 {[%clk 0:01:09.6]} 25. Bf1 {[%clk
0:00:40]} 25... a6 {[%clk 0:01:09.5]} 26. Rc2 {[%clk 0:00:22.3]} 26... g5 {[%clk
0:01:00.5]} 27. Rdc1 {[%clk 0:00:18.5]} 27... c5 {[%clk 0:00:55.9]} 28. Rd2
{[%clk 0:00:18.3]} 28... Kg7 {[%clk 0:00:47.1]} 29. Rcd1 {[%clk 0:00:16.3]}
29... Qe5 {[%clk 0:00:47.3]} 30. g3 {[%clk 0:00:10]} 30... Rf6 {[%clk
0:00:46.7]} 31. Qe2 {[%clk 0:00:08.4]} 31... Rdd6 {[%clk 0:00:45.4]} 32. f4
{[%clk 0:00:05.9]} 32... gxf4 {[%clk 0:00:45.1]} 33. Qg4+ {[%clk 0:00:05.9]}
33... Rg6 {[%clk 0:00:45]} 34. Qxf4 {[%clk 0:00:06.3]} 34... Qe7 {[%clk
0:00:19.4]} 35. b4 {[%clk 0:00:05.8]} 35... Rdf6 {[%clk 0:00:18.6]} 36. Qh4
{[%clk 0:00:04.8]} 36... Be5 {[%clk 0:00:17.7]} 37. Rd7 {[%clk 0:00:02.6]} 37...
Qe6 {[%clk 0:00:16.1]} 38. bxc5 {[%clk 0:00:02.5]} 38... Bxg3 {[%clk 0:00:15.3]}
39. Qh5 {[%clk 0:00:02.9]} 39... Qxe4+ {[%clk 0:00:15]} 40. Bg2 {[%clk
0:00:03.4]} 40... Qe3 {[%clk 0:00:07.5]} 41. c6 {[%clk 0:00:03.1]} 41... Bf4
{[%clk 0:00:06.1]} 42. Qf3 {[%clk 0:00:02.6]} 42... Qxf3 {[%clk 0:00:04.5]} 43.
Bxf3 {[%clk 0:00:03.5]} 43... Rg3 {[%clk 0:00:02.6]} 44. Bg4 {[%clk 0:00:04]}
44... Rc3 {[%clk 0:00:01.2]} 45. Rf1 {[%clk 0:00:01.6]} 45... Rcxc6 {[%clk
0:00:00.8]} 46. Rd4 {[%clk 0:00:02.3]} 46... Bg5 {[%clk 0:00:00.8]} 47. Rdf4
{[%clk 0:00:03]} 47... Rxf4 {[%clk 0:00:00.2]} 48. Re1 {[%clk 0:00:02.6]} 48...
Rcf6 {[%clk 0:00:00.2]} 49. Rf1 {[%clk 0:00:03]} 49... Rxf1+ {[%clk 0:00:00.5]}
50. Kg2 {[%clk 0:00:02.3]} 50... R1f2+ {[%clk 0:00:01.4]} 51. Kg3 {[%clk
0:00:03.2]} 51... Re2 {[%clk 0:00:01.5]} 52. Bxe2 {[%clk 0:00:02.9]} 52... Rd6
{[%clk 0:00:02.2]} 53. Bd3 {[%clk 0:00:03.7]} 53... Rd4 {[%clk 0:00:02.6]} 54.
Bf5 {[%clk 0:00:04]} 54... Ra4 {[%clk 0:00:03.2]} 55. Bb1 {[%clk 0:00:04.2]}
55... Ra3+ {[%clk 0:00:03.7]} 56. Kg4 {[%clk 0:00:04.3]} 56... Ra4+ {[%clk
0:00:04.6]} 57. Kf5 {[%clk 0:00:03.8]} 57... Rb4 {[%clk 0:00:05.3]} 58. Ke5
{[%clk 0:00:04.4]} 58... Rxb1 {[%clk 0:00:05.5]} 0-1

[Event "Early-Titled-Tuesday-Blitz-May-07-2024"]
[Site "Chess.com"]
[Date "2024.05.07"]
[Round "8"]
[White "GMSrinath"]
[Black "Cipy77"]
[Result "1-0"]
[WhiteElo "2839"]
[BlackElo "2610"]
[TimeControl "180+1"]
[EndTime "9:35:42 PDT"]
[Termination "GMSrinath won by resignation"]

1. Nf3 {[%clk 0:03:00.9]} 1... d5 {[%clk 0:02:59.3]} 2. e3 {[%clk 0:03:00.5]}
2... Nf6 {[%clk 0:02:58.7]} 3. c4 {[%clk 0:03:00.9]} 3... c6 {[%clk 0:02:58.8]}
4. d4 {[%clk 0:03:00.4]} 4... Bf5 {[%clk 0:02:47]} 5. Nc3 {[%clk 0:02:59.9]}
5... e6 {[%clk 0:02:47.4]} 6. Bd3 {[%clk 0:02:59.5]} 6... Bxd3 {[%clk
0:02:46.1]} 7. Qxd3 {[%clk 0:03:00.4]} 7... Nbd7 {[%clk 0:02:46.1]} 8. O-O
{[%clk 0:03:00.7]} 8... Be7 {[%clk 0:02:45]} 9. e4 {[%clk 0:03:01.2]} 9... dxe4
{[%clk 0:02:39.5]} 10. Nxe4 {[%clk 0:03:02.1]} 10... Nxe4 {[%clk 0:02:39.9]} 11.
Qxe4 {[%clk 0:03:03]} 11... Nf6 {[%clk 0:02:40.5]} 12. Qe2 {[%clk 0:03:03.7]}
12... O-O {[%clk 0:02:40.9]} 13. Rd1 {[%clk 0:03:04.3]} 13... Qc7 {[%clk
0:02:39.2]} 14. h3 {[%clk 0:03:02.9]} 14... Rfd8 {[%clk 0:02:38.8]} 15. b3
{[%clk 0:03:03.4]} 15... a5 {[%clk 0:02:38.3]} 16. a3 {[%clk 0:03:02.9]} 16...
Rd7 {[%clk 0:02:36.6]} 17. Bb2 {[%clk 0:03:00.7]} 17... Rad8 {[%clk 0:02:36.9]}
18. Ne5 {[%clk 0:03:00]} 18... Rd6 {[%clk 0:02:34.2]} 19. Rd3 {[%clk 0:02:58]}
19... c5 {[%clk 0:02:27.1]} 20. Rad1 {[%clk 0:02:50]} 20... cxd4 {[%clk
0:02:25.9]} 21. Bxd4 {[%clk 0:02:50.9]} 21... h6 {[%clk 0:02:20.7]} 22. Ng4
{[%clk 0:02:32.5]} 22... Nxg4 {[%clk 0:02:18.4]} 23. Qxg4 {[%clk 0:02:33.4]}
23... Bf8 {[%clk 0:02:08.8]} 24. Be5 {[%clk 0:01:47.6]} 24... Rxd3 {[%clk
0:02:08]} 25. Rxd3 {[%clk 0:01:48.5]} 25... Qe7 {[%clk 0:01:35.1]} 26. Rg3
{[%clk 0:01:48.3]} 26... f6 {[%clk 0:01:18.5]} 27. Bc3 {[%clk 0:01:48.1]} 27...
e5 {[%clk 0:01:15.2]} 28. Bxa5 {[%clk 0:01:44.4]} 28... Rd4 {[%clk 0:01:13.3]}
29. Qf3 {[%clk 0:01:21.1]} 29... Qxa3 {[%clk 0:01:07.1]} 30. Bc3 {[%clk
0:01:05.2]} 30... Qc1+ {[%clk 0:01:05.5]} 31. Kh2 {[%clk 0:01:05.6]} 31... Rd1
{[%clk 0:00:50.6]} 32. Rg4 {[%clk 0:01:05.9]} 32... Rh1+ {[%clk 0:00:25.3]} 33.
Kg3 {[%clk 0:01:05.6]} 33... e4 {[%clk 0:00:25.9]} 34. Qxf6 {[%clk 0:00:48.3]}
34... Bd6+ {[%clk 0:00:08.6]} 35. Kh4 {[%clk 0:00:47.9]} 35... Be7 {[%clk
0:00:04.3]} 36. Qxe7 {[%clk 0:00:47.2]} 36... Qxc3 {[%clk 0:00:03.7]} 37. Qe8+
{[%clk 0:00:41.1]} 37... Kh7 {[%clk 0:00:04.1]} 38. Qxe4+ {[%clk 0:00:42]} 38...
Kg8 {[%clk 0:00:04.3]} 39. Qe6+ {[%clk 0:00:35.7]} 39... Kh8 {[%clk 0:00:03.6]}
40. Qe8+ {[%clk 0:00:36]} 40... Kh7 {[%clk 0:00:03.9]} 41. Qg6+ {[%clk
0:00:36.9]} 41... Kh8 {[%clk 0:00:03.8]} 42. Re4 {[%clk 0:00:34.2]} 42... Qf6+
{[%clk 0:00:01.8]} 43. Qxf6 {[%clk 0:00:34.1]} 43... gxf6 {[%clk 0:00:02.7]} 44.
Re8+ {[%clk 0:00:34.8]} 44... Kg7 {[%clk 0:00:03.6]} 45. Re7+ {[%clk 0:00:35.7]}
45... Kg6 {[%clk 0:00:04.5]} 46. Rxb7 {[%clk 0:00:36.6]} 46... Re1 {[%clk
0:00:04.7]} 47. g4 {[%clk 0:00:34.2]} 47... Re4 {[%clk 0:00:04.8]} 48. Kg3
{[%clk 0:00:34.5]} 48... f5 {[%clk 0:00:05]} 49. Rb6+ {[%clk 0:00:33.4]} 49...
Kg7 {[%clk 0:00:04.4]} 50. gxf5 {[%clk 0:00:33.5]} 50... Rd4 {[%clk 0:00:05.1]}
51. f3 {[%clk 0:00:33]} 51... Rd2 {[%clk 0:00:05]} 52. b4 {[%clk 0:00:32.1]}
52... Rc2 {[%clk 0:00:04.4]} 53. c5 {[%clk 0:00:32.5]} 53... Rc4 {[%clk
0:00:02.6]} 54. h4 {[%clk 0:00:30]} 54... Kf7 {[%clk 0:00:02.8]} 55. h5 {[%clk
0:00:27.2]} 55... Kg7 {[%clk 0:00:03]} 56. Kf2 {[%clk 0:00:27.1]} 56... Kf7
{[%clk 0:00:03.2]} 57. Ke3 {[%clk 0:00:26.5]} 57... Kg7 {[%clk 0:00:03.4]} 58.
f4 {[%clk 0:00:18.3]} 58... Kf7 {[%clk 0:00:02.9]} 59. c6 {[%clk 0:00:16]} 59...
Ke7 {[%clk 0:00:02.2]} 60. b5 {[%clk 0:00:16.2]} 60... Kd6 {[%clk 0:00:01.4]}
61. Rb7 {[%clk 0:00:16.5]} 61... Kd5 {[%clk 0:00:01.4]} 62. c7 {[%clk 0:00:15]}
62... Rc3+ {[%clk 0:00:02]} 63. Kd2 {[%clk 0:00:15.3]} 63... Rc5 {[%clk
0:00:02.6]} 64. b6 {[%clk 0:00:15.4]} 64... Kc6 {[%clk 0:00:03.2]} 65. c8=Q+
{[%clk 0:00:15.1]} 1-0

[Event "Early-Titled-Tuesday-Blitz-May-07-2024"]
[Site "Chess.com"]
[Date "2024.05.07"]
[Round "8"]
[White "NastyaHn"]
[Black "VacheH009"]
[Result "0-1"]
[WhiteElo "2473"]
[BlackElo "2579"]
[TimeControl "180+1"]
[EndTime "9:35:42 PDT"]
[Termination "VacheH009 won on time"]

1. Nc3 {[%clk 0:02:54.6]} 1... d5 {[%clk 0:02:54]} 2. e4 {[%clk 0:02:52.3]} 2...
dxe4 {[%clk 0:02:47.9]} 3. Nxe4 {[%clk 0:02:52.1]} 3... Nd7 {[%clk 0:02:48.5]}
4. Nf3 {[%clk 0:02:50.3]} 4... Ngf6 {[%clk 0:02:48.2]} 5. Nxf6+ {[%clk 0:02:50]}
5... Nxf6 {[%clk 0:02:49.1]} 6. d4 {[%clk 0:02:50.5]} 6... Bf5 {[%clk
0:02:42.4]} 7. Bc4 {[%clk 0:02:48.6]} 7... e6 {[%clk 0:02:41.8]} 8. c3 {[%clk
0:02:45.1]} 8... h6 {[%clk 0:02:40.2]} 9. Bd3 {[%clk 0:02:44.2]} 9... Bxd3
{[%clk 0:02:38.7]} 10. Qxd3 {[%clk 0:02:43.7]} 10... Be7 {[%clk 0:02:32.4]} 11.
Be3 {[%clk 0:02:41]} 11... Qd5 {[%clk 0:02:26.6]} 12. Ne5 {[%clk 0:02:37.9]}
12... O-O {[%clk 0:02:17.5]} 13. O-O {[%clk 0:02:32.1]} 13... Rfd8 {[%clk
0:02:15.6]} 14. Rfd1 {[%clk 0:02:29.2]} 14... c5 {[%clk 0:02:09.8]} 15. h3
{[%clk 0:01:50.9]} 15... Rac8 {[%clk 0:01:36.2]} 16. Nf3 {[%clk 0:01:40.9]}
16... c4 {[%clk 0:01:30.9]} 17. Qe2 {[%clk 0:01:40.3]} 17... b5 {[%clk
0:01:31.2]} 18. Bf4 {[%clk 0:01:39.8]} 18... Qe4 {[%clk 0:01:23.5]} 19. Qd2
{[%clk 0:01:32.8]} 19... Nd5 {[%clk 0:01:22.3]} 20. Bg3 {[%clk 0:01:32.2]} 20...
Bf6 {[%clk 0:01:15.2]} 21. a3 {[%clk 0:01:29.3]} 21... a5 {[%clk 0:01:13.2]} 22.
Re1 {[%clk 0:01:29.3]} 22... Qg6 {[%clk 0:01:12.8]} 23. Be5 {[%clk 0:01:22.7]}
23... Rd7 {[%clk 0:01:09.1]} 24. Bxf6 {[%clk 0:01:21]} 24... Qxf6 {[%clk
0:01:10]} 25. Ne5 {[%clk 0:01:20.7]} 25... Rb7 {[%clk 0:01:10.5]} 26. Qe2 {[%clk
0:01:03.1]} 26... Qg5 {[%clk 0:00:56.3]} 27. Nf3 {[%clk 0:00:53]} 27... Qg6
{[%clk 0:00:49.5]} 28. Ne5 {[%clk 0:00:52.1]} 28... Qg5 {[%clk 0:00:49.9]} 29.
Nf3 {[%clk 0:00:49.1]} 29... Qh5 {[%clk 0:00:47.4]} 30. Rac1 {[%clk 0:00:33]}
30... Rbc7 {[%clk 0:00:40.3]} 31. Qe4 {[%clk 0:00:27]} 31... b4 {[%clk
0:00:39.3]} 32. axb4 {[%clk 0:00:22.9]} 32... axb4 {[%clk 0:00:40.2]} 33. cxb4
{[%clk 0:00:21.1]} 33... Nxb4 {[%clk 0:00:39.7]} 34. Ne5 {[%clk 0:00:21.2]}
34... Nd5 {[%clk 0:00:37.1]} 35. Rc2 {[%clk 0:00:16.8]} 35... c3 {[%clk
0:00:34.8]} 36. bxc3 {[%clk 0:00:15.5]} 36... Nxc3 {[%clk 0:00:34.9]} 37. Qd3
{[%clk 0:00:15.4]} 37... Qg5 {[%clk 0:00:22.9]} 38. Nf3 {[%clk 0:00:14]} 38...
Qf4 {[%clk 0:00:13.1]} 39. Rec1 {[%clk 0:00:12.7]} 39... Nd5 {[%clk 0:00:09.9]}
40. Rxc7 {[%clk 0:00:11.4]} 40... Rxc7 {[%clk 0:00:10.8]} 41. Rxc7 {[%clk
0:00:11.2]} 41... Qxc7 {[%clk 0:00:11.7]} 42. g3 {[%clk 0:00:09.9]} 42... g6
{[%clk 0:00:11.8]} 43. h4 {[%clk 0:00:09.3]} 43... Qc1+ {[%clk 0:00:11.2]} 44.
Kg2 {[%clk 0:00:09.5]} 44... Qb2 {[%clk 0:00:12.1]} 45. Qe4 {[%clk 0:00:08]}
45... Nc3 {[%clk 0:00:11]} 46. Qe5 {[%clk 0:00:07.3]} 46... Nd1 {[%clk
0:00:09.6]} 47. Qe1 {[%clk 0:00:05.2]} 47... Qc2 {[%clk 0:00:10]} 48. Kf1 {[%clk
0:00:03.4]} 48... Qd3+ {[%clk 0:00:08.3]} 49. Kg2 {[%clk 0:00:03.5]} 49... Qc3
{[%clk 0:00:08.9]} 50. Qxc3 {[%clk 0:00:03.1]} 50... Nxc3 {[%clk 0:00:08.5]} 51.
Ne5 {[%clk 0:00:02.9]} 51... Kf8 {[%clk 0:00:08.3]} 52. Kf3 {[%clk 0:00:02.3]}
52... Ke7 {[%clk 0:00:08.2]} 53. Ke3 {[%clk 0:00:02.7]} 53... Nd5+ {[%clk
0:00:06]} 54. Ke4 {[%clk 0:00:02.7]} 54... Nf6+ {[%clk 0:00:06.4]} 55. Ke3
{[%clk 0:00:03]} 55... Nd5+ {[%clk 0:00:04.7]} 56. Ke4 {[%clk 0:00:03.4]} 56...
Nb4 {[%clk 0:00:05]} 57. Nc6+ {[%clk 0:00:02.7]} 57... Nxc6 {[%clk 0:00:03.4]}
0-1

[Event "Early-Titled-Tuesday-Blitz-May-07-2024"]
[Site "Chess.com"]
[Date "2024.05.07"]
[Round "8"]
[White "Caterpiller35"]
[Black "Barbix1"]
[Result "1/2-1/2"]
[WhiteElo "2478"]
[BlackElo "2279"]
[TimeControl "180+1"]
[EndTime "9:35:46 PDT"]
[Termination "Game drawn by stalemate"]

1. e4 {[%clk 0:03:00.9]} 1... c5 {[%clk 0:02:59.2]} 2. Nf3 {[%clk 0:03:00.7]}
2... e6 {[%clk 0:02:58.4]} 3. d4 {[%clk 0:03:00.7]} 3... cxd4 {[%clk 0:02:59]}
4. Nxd4 {[%clk 0:03:01.6]} 4... Nf6 {[%clk 0:02:58.8]} 5. Nc3 {[%clk 0:03:01.7]}
5... Nc6 {[%clk 0:02:59.5]} 6. Ndb5 {[%clk 0:03:00.8]} 6... d6 {[%clk
0:02:58.7]} 7. Bf4 {[%clk 0:02:59.8]} 7... e5 {[%clk 0:02:59]} 8. Bg5 {[%clk
0:03:00.4]} 8... a6 {[%clk 0:02:59.4]} 9. Na3 {[%clk 0:03:00.1]} 9... b5 {[%clk
0:02:59.7]} 10. Nd5 {[%clk 0:03:00.6]} 10... Be7 {[%clk 0:02:59.5]} 11. Bxf6
{[%clk 0:03:01.1]} 11... Bxf6 {[%clk 0:03:00.2]} 12. c4 {[%clk 0:03:01.7]} 12...
b4 {[%clk 0:02:55.7]} 13. Nc2 {[%clk 0:03:01.4]} 13... O-O {[%clk 0:02:49.5]}
14. g3 {[%clk 0:02:56.6]} 14... a5 {[%clk 0:02:48.5]} 15. b3 {[%clk 0:02:53.4]}
15... g6 {[%clk 0:02:45.4]} 16. h4 {[%clk 0:02:53.1]} 16... Bg7 {[%clk 0:02:34]}
17. h5 {[%clk 0:02:43.9]} 17... Be6 {[%clk 0:02:29.7]} 18. hxg6 {[%clk
0:02:36.8]} 18... fxg6 {[%clk 0:02:18.3]} 19. Nce3 {[%clk 0:02:29.4]} 19... Nd4
{[%clk 0:02:10.3]} 20. Be2 {[%clk 0:02:22.6]} 20... Ra7 {[%clk 0:02:03.6]} 21.
Bg4 {[%clk 0:01:27.4]} 21... Bxg4 {[%clk 0:01:16.5]} 22. Qxg4 {[%clk 0:01:28.3]}
22... Nf3+ {[%clk 0:01:16.3]} 23. Kf1 {[%clk 0:01:18]} 23... Raf7 {[%clk
0:01:10.6]} 24. Nd1 {[%clk 0:00:56.7]} 24... Qg5 {[%clk 0:00:34.3]} 25. N5e3
{[%clk 0:00:40.2]} 25... Qxg4 {[%clk 0:00:30.6]} 26. Nxg4 {[%clk 0:00:41.1]}
26... Nd2+ {[%clk 0:00:30.8]} 27. Ke2 {[%clk 0:00:36.8]} 27... Nxe4 {[%clk
0:00:31.4]} 28. Rh2 {[%clk 0:00:28.2]} 28... h5 {[%clk 0:00:30.5]} 29. Nge3
{[%clk 0:00:26.4]} 29... Ng5 {[%clk 0:00:20.1]} 30. Nd5 {[%clk 0:00:17.1]} 30...
Nf3 {[%clk 0:00:20.1]} 31. Rh1 {[%clk 0:00:16.6]} 31... Nd4+ {[%clk 0:00:19.4]}
32. Kd2 {[%clk 0:00:13]} 32... Rf3 {[%clk 0:00:18.7]} 33. N5e3 {[%clk
0:00:11.6]} 33... Bh6 {[%clk 0:00:17.8]} 34. Re1 {[%clk 0:00:09.4]} 34... Kg7
{[%clk 0:00:18]} 35. a3 {[%clk 0:00:07.5]} 35... R3f7 {[%clk 0:00:17.4]} 36. Rb1
{[%clk 0:00:04.4]} 36... Nf3+ {[%clk 0:00:17.3]} 37. Ke2 {[%clk 0:00:04.3]}
37... Nxe1 {[%clk 0:00:17.7]} 38. Kxe1 {[%clk 0:00:05.2]} 38... bxa3 {[%clk
0:00:17.7]} 39. Ra1 {[%clk 0:00:05.6]} 39... Ra7 {[%clk 0:00:15]} 40. Rxa3
{[%clk 0:00:05.7]} 40... Rb8 {[%clk 0:00:15.7]} 41. Nd5 {[%clk 0:00:04.2]} 41...
Kf7 {[%clk 0:00:15.1]} 42. N1c3 {[%clk 0:00:03.3]} 42... Bc1 {[%clk 0:00:14.9]}
43. Ra1 {[%clk 0:00:03]} 43... Bb2 {[%clk 0:00:14.7]} 44. Rd1 {[%clk 0:00:03]}
44... Rxb3 {[%clk 0:00:13.9]} 45. Rd3 {[%clk 0:00:00.8]} 45... a4 {[%clk
0:00:12.9]} 46. Rf3+ {[%clk 0:00:00.8]} 46... Kg7 {[%clk 0:00:13.1]} 47. Ne4
{[%clk 0:00:00.3]} 47... Rxf3 {[%clk 0:00:12.7]} 48. Nd2 {[%clk 0:00:00.1]}
48... Rd3 {[%clk 0:00:11]} 49. Ke2 {[%clk 0:00:01]} 49... Rd4 {[%clk 0:00:10.4]}
50. Nb4 {[%clk 0:00:00.8]} 50... Bc3 {[%clk 0:00:10.3]} 51. Nc6 {[%clk
0:00:01.5]} 51... Ra6 {[%clk 0:00:10.6]} 52. Nxd4 {[%clk 0:00:01.8]} 52... Bxd4
{[%clk 0:00:11.2]} 53. Ne4 {[%clk 0:00:02.1]} 53... a3 {[%clk 0:00:11.8]} 54.
Nd2 {[%clk 0:00:02.5]} 54... a2 {[%clk 0:00:12.2]} 55. Nb3 {[%clk 0:00:03.4]}
55... a1=Q {[%clk 0:00:13]} 56. Nxa1 {[%clk 0:00:03.8]} 56... Rxa1 {[%clk
0:00:13.6]} 57. Kd3 {[%clk 0:00:04.7]} 57... Ra2 {[%clk 0:00:14.5]} 58. c5
{[%clk 0:00:05.6]} 58... Rxf2 {[%clk 0:00:14.9]} 59. cxd6 {[%clk 0:00:05.3]}
59... Rf8 {[%clk 0:00:15.7]} 60. d7 {[%clk 0:00:05.2]} 60... Rd8 {[%clk
0:00:15.7]} 61. Ke4 {[%clk 0:00:06.1]} 61... Rxd7 {[%clk 0:00:16.6]} 62. g4
{[%clk 0:00:06.8]} 62... Ra7 {[%clk 0:00:17.1]} 63. Kd3 {[%clk 0:00:07.7]} 63...
hxg4 {[%clk 0:00:17]} 64. Ke4 {[%clk 0:00:07.6]} 64... g3 {[%clk 0:00:17.9]} 65.
Kf3 {[%clk 0:00:07.9]} 65... Kf6 {[%clk 0:00:18.8]} 66. Kxg3 {[%clk 0:00:08.8]}
66... Kf5 {[%clk 0:00:18.8]} 67. Kh4 {[%clk 0:00:09]} 67... Ra3 {[%clk
0:00:19.7]} 1/2-1/2